bitfinex/quotes_SOLUSD_20220302
["timestamp","ask_amount","ask_price","bid_price","bid_amount"]
[1646231615192,53.20188923,101.67,101.59,15.012]
[1646231618895,6.0,101.66,101.59,15.012]
[1646231621299,6.0,101.66,101.59,31.47044565]
[1646231621802,5.0,101.68,101.59,31.47044565]
[1646231622199,14.7618,101.69,101.6,0.25042268]
[1646231622400,14.7618,101.69,101.6,15.01132268]
[1646231622599,14.7618,101.69,101.6,15.26132268]
[1646231622902,58.03754352,101.68,101.6,15.26132268]
[1646231624123,58.03754352,101.68,101.6,15.0109]
[1646231624927,29.2696,101.71,101.6,17.55994003]
[1646231625128,6.22577436,101.72,101.61,98.75]
[1646231625129,5.0,101.72,101.61,98.75]
[1646231625327,5.0,101.72,101.64,115.43186119]
[1646231625525,5.0,101.72,101.64,25.86186119]
[1646231625925,48.99355739,101.71,101.62,14.08904003]
[1646231626129,48.99355739,101.71,101.62,14.33904003]
[1646231626327,43.55834116,101.69,101.62,14.33904003]
[1646231626526,43.55834116,101.69,101.62,2.79904003]
[1646231626929,6.0,101.7,101.62,2.79904003]
[1646231627129,6.0,101.7,101.62,17.55644003]
[1646231627331,6.0,101.7,101.62,19.72852575]
[1646231627532,14.7574,101.72,101.62,19.72852575]
[1646231627729,6.0,101.71,101.62,19.72852575]
[1646231627932,50.48201325,101.71,101.62,19.72852575]
[1646231629334,65.24091325,101.71,101.62,19.72852575]
[1646231629539,65.24091325,101.71,101.62,4.72112575]
[1646231629733,233.50168129,101.71,101.59,2.54904003]
[1646231629930,218.74278129,101.71,101.58,48.59496238]
[1646231630131,3.935,101.7,101.58,48.59496238]
[1646231630330,54.81645379,101.65,101.58,48.59496238]
[1646231630931,54.81645379,101.65,101.58,48.84496238]
[1646231631833,14.7666,101.66,101.58,48.84496238]
[1646231632135,2.30076804,101.7,101.58,162.35916238]
[1646231632332,62.5624,101.72,101.58,173.89916238]
[1646231632532,14.7011,101.72,101.59,0.23160666]
[1646231632732,14.7011,101.72,101.59,11.77160666]
[1646231633032,47.46312921,101.69,101.59,11.79]
[1646231633834,49.76389725,101.69,101.58,48.59496238]
[1646231634037,49.76389725,101.69,101.58,48.84496238]
[1646231634038,6.0,101.68,101.58,48.84496238]
[1646231634236,55.72975393,101.67,101.58,48.84496238]
[1646231634934,14.766,101.66,101.58,48.84496238]
[1646231635336,55.72975393,101.67,101.58,48.84496238]
[1646231635536,6.0,101.68,101.58,147.59496238]
[1646231635736,6.0,101.68,101.58,159.13496238]
[1646231635935,6.0,101.68,101.59,0.19308384]
[1646231636135,14.7606,101.7,101.61,14.7588]
[1646231636436,49.28251316,101.69,101.61,16.98273825]
[1646231636937,49.28251316,101.69,101.59,38.72116282]
[1646231637137,49.28251316,101.69,101.59,38.97116282]
[1646231638139,59.92861149,101.67,101.59,53.73306282]
[1646231640042,74.69221149,101.67,101.59,53.73306282]
[1646231640343,14.7636,101.67,101.59,53.73306282]
[1646231640545,6.0,101.68,101.59,152.48306282]
[1646231640742,6.0,101.68,101.6,0.20615762]
[1646231640942,6.0,101.68,101.62,17.11847531]
[1646231641142,6.0,101.68,101.62,17.36847531]
[1646231641342,54.69859347,101.68,101.62,17.36847531]
[1646231642742,54.69859347,101.68,101.62,2.61037531]
[1646231642944,54.69859347,101.68,101.6,17.2056517]
[1646231643144,54.69859347,101.68,101.59,24.9697]
[1646231643344,62.86536151,101.68,101.58,46.3157]
[1646231644548,56.99936151,101.68,101.58,46.3157]
[1646231644750,55.43355185,101.64,101.58,46.3157]
[1646231645049,70.20145185,101.64,101.56,16.8009627]
[1646231645250,70.20145185,101.64,101.56,14.7668]
[1646231645450,55.43355185,101.64,101.55,24.7689]
[1646231645651,5.0,101.63,101.55,24.7689]
[1646231645850,51.8083786,101.62,101.55,24.7689]
[1646231646652,51.8083786,101.62,101.55,25.0189]
[1646231646853,51.8083786,101.62,101.55,27.33347032]
[1646231647654,19.7693,101.63,101.55,27.33347032]
[1646231648755,6.0,101.62,101.55,27.33347032]
[1646231649159,6.0,101.62,101.55,42.10187032]
[1646231649960,48.78737226,101.61,101.55,42.10187032]
[1646231650357,6.0,101.62,101.55,42.10187032]
[1646231650559,6.0,101.62,101.55,56.60197032]
[1646231650959,14.4388,101.65,101.55,56.60197032]
[1646231651160,6.0,101.64,101.56,11.72571988]
[1646231651360,6.0,101.64,101.56,11.97571988]
[1646231651560,6.0,101.64,101.56,11.79]
[1646231651759,78.37757826,101.66,101.56,11.79]
[1646231652062,6.0,101.65,101.56,11.79]
[1646231652460,6.0,101.65,101.56,110.54]
[1646231652761,6.0,101.65,101.57,0.20241201]
[1646231652962,14.6103,101.69,101.57,26.3047]
[1646231653160,5.0,101.67,101.57,14.19257004]
[1646231653361,5.0,101.67,101.57,11.79]
[1646231653561,44.31291505,101.66,101.57,11.79]
[1646231653963,59.07831505,101.66,101.57,26.5557]
[1646231654163,44.31291505,101.66,101.57,17.45962499]
[1646231654669,5.0,101.65,101.57,0.25]
[1646231654865,54.940661,101.64,101.56,25.28909196]
[1646231656165,74.708661,101.64,101.56,25.28909196]
[1646231656567,6.0,101.63,101.56,25.28909196]
[1646231656769,46.82295431,101.62,101.56,25.28909196]
[1646231656971,46.82295431,101.62,101.56,0.25]
[1646231657168,46.82295431,101.62,101.55,56.27154064]
[1646231657169,51.82295431,101.62,101.55,56.52154064]
[1646231657386,51.82295431,101.62,101.55,41.77144064]
[1646231657587,51.82295431,101.62,101.55,2.04543808]
[1646231657789,58.54895431,101.62,101.54,112.9]
[1646231657987,53.54895431,101.62,101.54,112.9]
[1646231658387,53.54895431,101.62,101.54,114.9422375]
[1646231658589,5.0,101.61,101.54,114.9422375]
[1646231658789,6.0,101.63,101.54,115.1922375]
[1646231658989,6.0,101.63,101.54,152.51681435]
[1646231659389,6.0,101.63,101.54,39.36681435]
[1646231659589,68.164049,101.62,101.53,16.7540144]
[1646231659793,53.392849,101.62,101.53,16.7540144]
[1646231659990,48.94733745,101.6,101.53,16.7540144]
[1646231660190,5.0,101.6,101.53,16.7540144]
[1646231660393,6.0,101.59,101.53,16.7540144]
[1646231660591,74.60066703,101.65,101.53,115.5040144]
[1646231660592,53.1733,101.65,101.53,115.5040144]
[1646231660790,6.0,101.64,101.53,127.0440144]
[1646231660991,6.0,101.64,101.53,147.14743734]
[1646231661191,6.0,101.64,101.53,164.61568085]
[1646231661592,54.20092592,101.63,101.53,164.61568085]
[1646231661791,54.20092592,101.63,101.53,65.86568085]
[1646231661996,54.20092592,101.63,101.53,48.39743734]
[1646231662491,54.20092592,101.63,101.53,28.5440144]
[1646231663598,54.20092592,101.63,101.53,127.0440144]
[1646231663792,20.7681,101.64,101.53,127.0440144]
[1646231664191,25.7681,101.64,101.53,127.0440144]
[1646231664794,56.97339924,101.63,101.53,186.1840144]
[1646231664996,56.97339924,101.63,101.53,127.2940144]
[1646231665197,19.7681,101.64,101.53,127.2940144]
[1646231665894,19.7681,101.64,101.54,2.54904003]
[1646231666094,14.7681,101.64,101.54,2.79904003]
[1646231666293,14.7681,101.64,101.54,115.35467747]
[1646231666493,19.7658,101.66,101.55,2.54904003]
[1646231666697,6.23665774,101.68,101.57,100.9542619]
[1646231666895,3.936,101.68,101.6,0.33051787]
[1646231667095,3.935,101.71,101.6,118.36503002]
[1646231667298,5.0,101.7,101.61,2.54904003]
[1646231667495,57.41875651,101.69,101.61,51.24632648]
[1646231667995,57.41875651,101.69,101.62,14.7576]
[1646231668195,6.0,101.68,101.62,0.25]
[1646231668595,55.32330403,101.67,101.62,0.25]
[1646231669098,55.32330403,101.67,101.61,2.79904003]
[1646231669296,55.32330403,101.67,101.61,19.28106917]
[1646231669497,55.32330403,101.67,101.61,2.79904003]
[1646231669697,55.32330403,101.67,101.6,16.8987871]
[1646231669901,55.32330403,101.67,101.59,2.54904003]
[1646231670100,55.32330403,101.67,101.58,64.98738048]
[1646231670500,14.7662,101.65,101.58,64.98738048]
[1646231670700,58.14271137,101.65,101.58,49.94698048]
[1646231671902,63.14271137,101.65,101.57,23.8659]
[1646231672108,63.14271137,101.65,101.57,26.40728552]
[1646231672301,63.14271137,101.65,101.57,26.15728552]
[1646231672508,49.75985099,101.63,101.57,26.15728552]
[1646231672702,49.75985099,101.63,101.55,178.32509829]
[1646231673103,49.75985099,101.63,101.55,178.33229829]
[1646231673302,52.06050873,101.63,101.52,16.848528]
[1646231673505,14.7721,101.61,101.52,16.848528]
[1646231673704,58.25536366,101.6,101.52,16.848528]
[1646231674703,73.02886366,101.6,101.52,16.848528]
[1646231675108,73.02886366,101.6,101.52,17.098528]
[1646231677710,5.0,101.61,101.53,0.21439486]
[1646231678108,14.4152,101.66,101.54,100.94234592]
[1646231678309,14.4152,101.66,101.55,0.21439486]
[1646231678508,58.61081956,101.64,101.54,148.41374592]
[1646231678711,14.7688,101.64,101.54,174.72064592]
[1646231678911,5.0,101.65,101.54,253.87792946]
[1646231679109,5.0,101.65,101.56,157.89]
[1646231679310,5.0,101.65,101.58,100.91015289]
[1646231679510,24.9348,101.7,101.58,118.38515289]
[1646231679715,38.3288,101.71,101.58,19.63515289]
[1646231679911,14.7636,101.67,101.59,17.30994003]
[1646231680111,51.4265452,101.66,101.59,2.79904003]
[1646231680315,51.4265452,101.66,101.59,0.25]
[1646231680711,6.0,101.65,101.59,0.25]
[1646231680913,52.07912184,101.64,101.59,0.25]
[1646231681117,52.07912184,101.64,101.57,56.03474295]
[1646231681311,6.0,101.65,101.57,154.78474295]
[1646231681512,6.0,101.65,101.57,140.01974295]
[1646231681711,6.0,101.65,101.57,41.26974295]
[1646231681912,5.0,101.67,101.57,41.26974295]
[1646231682110,6.0,101.66,101.57,41.26974295]
[1646231682312,60.28009027,101.65,101.57,41.26974295]
[1646231682918,60.28009027,101.65,101.57,26.49634295]
[1646231684014,60.28009027,101.65,101.57,41.26184295]
[1646231684414,55.77864343,101.63,101.57,41.26184295]
[1646231684716,55.77864343,101.63,101.57,0.25]
[1646231684915,55.77864343,101.63,101.56,27.1154637]
[1646231685914,11.0,101.64,101.56,27.1154637]
[1646231686315,11.0,101.64,101.56,125.8654637]
[1646231686715,6.0,101.64,101.56,125.8654637]
[1646231686916,73.52897823,101.66,101.56,125.8654637]
[1646231687115,6.0,101.65,101.56,175.0771637]
[1646231687318,6.0,101.65,101.56,177.62620373]
[1646231687716,6.0,101.67,101.56,177.62620373]
[1646231688021,6.0,101.67,101.56,195.36620373]
[1646231688416,57.20494043,101.66,101.56,195.36620373]
[1646231688917,57.20494043,101.66,101.56,189.16620373]
[1646231689717,57.20494043,101.66,101.56,90.41620373]
[1646231690523,57.20494043,101.66,101.56,38.4054637]
[1646231690721,57.20494043,101.66,101.56,26.8654637]
[1646231690926,57.20494043,101.66,101.55,22.9719]
[1646231691140,59.49967163,101.66,101.55,22.9719]
[1646231691344,15.12052635,101.65,101.55,22.9719]
[1646231691541,46.96645956,101.64,101.55,22.9719]
[1646231691743,52.28882626,101.62,101.55,22.9719]
[1646231692142,48.30382348,101.6,101.55,22.9719]
[1646231692342,48.30382348,101.6,101.54,25.00929535]
[1646231692540,48.30382348,101.6,101.54,25.25929535]
[1646231692942,48.30382348,101.6,101.54,0.25]
[1646231693642,48.30382348,101.6,101.53,15.0207]
[1646231695847,6.0,101.59,101.53,15.0207]
[1646231696044,50.13412677,101.58,101.53,15.0207]
[1646231697446,6.0,101.59,101.53,15.0207]
[1646231697647,6.0,101.6,101.53,15.0207]
[1646231698450,45.9541199,101.59,101.53,15.0207]
[1646231698847,6.0,101.6,101.53,113.7707]
[1646231699046,5.0,101.61,101.53,113.7707]
[1646231699047,5.0,101.61,101.55,0.18809821]
[1646231699246,63.801,101.65,101.54,104.02910537]
[1646231699446,6.0,101.64,101.54,2.79904003]
[1646231699847,50.95715535,101.63,101.54,2.79904003]
[1646231701147,55.95715535,101.63,101.54,0.25]
[1646231701348,55.95715535,101.63,101.53,41.5406272]
[1646231702148,51.15513517,101.61,101.53,41.5406272]
[1646231702349,50.84448076,101.61,101.53,41.5406272]
[1646231702750,50.84448076,101.61,101.53,44.08966723]
[1646231702953,6.0,101.6,101.53,62.38309017]
[1646231703149,60.00174613,101.59,101.53,62.38309017]
[1646231703350,60.00174613,101.59,101.53,62.13309017]
[1646231703552,60.00174613,101.59,101.53,26.5199272]
[1646231704750,60.00174613,101.59,101.53,24.5609]
[1646231704952,60.00174613,101.59,101.53,24.3109]
[1646231706551,60.00174613,101.59,101.53,24.5609]
[1646231707053,14.7717,101.62,101.54,0.19088332]
[1646231707253,5.0,101.6,101.54,0.19088332]
[1646231707455,64.0046,101.65,101.54,0.19088332]
[1646231707655,5.0,101.64,101.54,0.19088332]
[1646231707854,51.96387093,101.64,101.53,53.05032115]
[1646231708055,59.25893453,101.62,101.53,53.05032115]
[1646231708657,59.25893453,101.62,101.53,55.59936118]
[1646231709057,59.25893453,101.62,101.53,44.05936118]
[1646231710458,65.86593453,101.62,101.53,41.51032115]
[1646231710660,65.86593453,101.62,101.53,26.73892115]
[1646231712060,5.0,101.61,101.53,26.73892115]
[1646231712360,3.936,101.65,101.53,139.57796118]
[1646231712559,24.4345,101.66,101.54,0.31153303]
[1646231712760,24.4345,101.66,101.55,11.54]
[1646231712960,41.9065312,101.68,101.55,0.25]
[1646231713162,14.768,101.64,101.55,0.25]
[1646231713361,46.28221148,101.63,101.55,0.25]
[1646231714063,46.28221148,101.63,101.54,26.81654465]
[1646231714262,51.06294777,101.61,101.54,41.58664465]
[1646231716367,51.06294777,101.61,101.54,41.33664465]
[1646231717565,51.06294777,101.61,101.54,41.58664465]
[1646231720773,6.0,101.62,101.54,140.33664465]
[1646231720976,14.7674,101.65,101.55,112.41508224]
[1646231721174,28.7408,101.66,101.56,14.7647]
[1646231721175,24.8048,101.66,101.56,14.7647]
[1646231721378,3.936,101.67,101.56,15.17417693]
[1646231721582,3.936,101.67,101.56,15.0147]
[1646231721779,70.39883738,101.66,101.56,15.0147]
[1646231722180,5.0,101.65,101.56,15.0147]
[1646231722383,59.59065049,101.64,101.56,15.0147]
[1646231723380,64.59065049,101.64,101.56,32.05424003]
[1646231723584,59.59065049,101.64,101.56,34.45224898]
[1646231723979,6.0,101.63,101.56,34.45224898]
[1646231724484,6.0,101.63,101.57,6.0]
[1646231724684,6.0,101.63,101.58,16.67853921]
[1646231724899,6.0,101.63,101.59,6.0]
[1646231725099,8.936,101.68,101.6,0.15866058]
[1646231725399,24.3211,101.7,101.6,115.26661793]
[1646231725599,5.0,101.71,101.61,8.54904003]
[1646231725800,5.0,101.71,101.61,9.02581029]
[1646231726000,44.7475438,101.7,101.61,8.79904003]
[1646231726800,44.7475438,101.7,101.62,2.54904003]
[1646231727001,44.7475438,101.7,101.63,6.0]
[1646231727201,44.7475438,101.7,101.63,6.25]
[1646231727399,44.7475438,101.7,101.64,2.54904003]
[1646231727700,44.7475438,101.7,101.64,2.79904003]
[1646231727900,44.7475438,101.7,101.65,6.0]
[1646231728101,44.7475438,101.7,101.65,0.25]
[1646231728501,44.7475438,101.7,101.62,16.14754307]
[1646231728705,44.7475438,101.7,101.62,2.54904003]
[1646231728903,43.65627828,101.68,101.6,57.12118653]
[1646231729103,43.65627828,101.68,101.61,6.0]
[1646231729307,43.65627828,101.68,101.61,8.54904003]
[1646231729704,43.65627828,101.68,101.61,2.54904003]
[1646231729912,43.65627828,101.68,101.6,24.8774465]
[1646231730104,5.0,101.67,101.58,41.77494468]
[1646231730306,48.13340044,101.66,101.58,41.77494468]
[1646231730703,48.13340044,101.66,101.58,27.01164468]
[1646231731104,48.13340044,101.66,101.56,17.05148092]
[1646231731304,48.13340044,101.66,101.55,26.10534362]
[1646231731506,50.42813164,101.66,101.55,26.10534362]
[1646231731704,5.0,101.62,101.55,26.10534362]
[1646231731908,59.28185871,101.63,101.55,26.10534362]
[1646231732504,49.86899531,101.61,101.55,26.35534362]
[1646231733107,49.86899531,101.61,101.55,41.12334362]
[1646231735009,6.0,101.62,101.55,41.12334362]
[1646231735209,14.768,101.64,101.55,41.12334362]
[1646231735411,6.0,101.63,101.55,41.12334362]
[1646231736010,74.22644037,101.64,101.55,139.87334362]
[1646231737014,74.22644037,101.64,101.55,41.12334362]
[1646231738014,79.22644037,101.64,101.55,41.12334362]
[1646231738411,79.22644037,101.64,101.55,139.87334362]
[1646231738610,74.22644037,101.64,101.55,41.12334362]
[1646231738810,5.0,101.63,101.55,52.66334362]
[1646231740011,47.89870552,101.62,101.55,52.66334362]
[1646231740912,5.0,101.63,101.55,52.66334362]
[1646231741115,5.0,101.63,101.55,173.97579325]
[1646231741316,3.936,101.68,101.58,113.68764539]
[1646231741514,6.0,101.67,101.6,98.75]
[1646231741714,3.935,101.71,101.6,0.25]
[1646231741913,43.62646327,101.69,101.6,11.79]
[1646231742317,58.38706327,101.69,101.6,11.79]
[1646231743918,63.38706327,101.69,101.6,11.79]
[1646231744217,58.38706327,101.69,101.6,11.79]
[1646231744418,5.0,101.68,101.6,11.79]
[1646231744625,53.48042834,101.67,101.6,0.25]
[1646231744819,53.48042834,101.67,101.59,26.06337668]
[1646231745419,53.48042834,101.67,101.59,25.81337668]
[1646231745919,5.0,101.65,101.59,25.81337668]
[1646231746118,46.0310874,101.64,101.59,25.81337668]
[1646231746519,46.0310874,101.64,101.59,2.46307668]
[1646231746728,46.0310874,101.64,101.59,0.25]
[1646231747020,46.0310874,101.64,101.57,50.07394302]
[1646231747226,46.0310874,101.64,101.57,2.44954302]
[1646231747423,57.93485913,101.62,101.57,0.25]
[1646231747629,57.93485913,101.62,101.54,49.8572802]
[1646231747822,64.32485913,101.62,101.54,49.8572802]
[1646231748025,43.96570209,101.6,101.54,49.8572802]
[1646231748821,6.0,101.61,101.54,49.8572802]
[1646231749025,5.0,101.65,101.54,91.34072273]
[1646231749221,14.7679,101.64,101.54,91.34072273]
[1646231749622,14.7679,101.64,101.54,93.88976276]
[1646231749824,59.89294385,101.63,101.54,93.88976276]
[1646231750223,59.89294385,101.63,101.54,73.62635316]
[1646231750423,59.89294385,101.63,101.54,49.8572802]
[1646231750923,5.0,101.62,101.54,49.8572802]
[1646231751126,52.67062095,101.61,101.54,49.8572802]
[1646231751525,57.67062095,101.61,101.54,50.1072802]
[1646231751723,52.67062095,101.61,101.54,50.1072802]
[1646231751926,57.67062095,101.61,101.54,50.1072802]
[1646231752124,52.67062095,101.61,101.54,49.8572802]
[1646231752327,52.67062095,101.61,101.53,3.935]
[1646231752527,57.67062095,101.61,101.53,4.185]
[1646231752726,58.14519053,101.59,101.53,4.185]
[1646231752924,58.14519053,101.59,101.53,3.935]
[1646231753125,6.0,101.6,101.53,6.48404003]
[1646231753326,19.7718,101.62,101.53,44.37482434]
[1646231753525,6.0,101.61,101.53,29.60402434]
[1646231753725,6.0,101.61,101.53,6.48404003]
[1646231754025,47.8608782,101.6,101.53,6.48404003]
[1646231754226,47.8608782,101.6,101.53,6.73404003]
[1646231754626,62.6344782,101.6,101.53,6.73404003]
[1646231755027,67.6344782,101.6,101.53,6.73404003]
[1646231756232,62.6344782,101.6,101.53,6.73404003]
[1646231756427,6.0,101.59,101.53,6.73404003]
[1646231756627,51.1480955,101.58,101.53,6.73404003]
[1646231757128,51.1480955,101.58,101.53,6.48404003]
[1646231757329,51.1480955,101.58,101.53,3.935]
[1646231758227,56.1480955,101.58,101.53,3.935]
[1646231758628,14.7782,101.57,101.53,3.935]
[1646231758829,48.57300799,101.56,101.53,3.935]
[1646231759029,48.57300799,101.56,101.49,129.62538855]
[1646231759229,48.57300799,101.56,101.49,114.84948855]
[1646231759434,55.97100799,101.56,101.49,2.54904003]
[1646231759631,55.97100799,101.56,101.45,244.05102499]
[1646231759632,55.97100799,101.56,101.46,19.83395428]
[1646231759833,55.97100799,101.56,101.46,2.54904003]
[1646231760034,2.44433001,101.55,101.44,2.54904003]
[1646231760231,157.89,101.54,101.41,50.48274198]
[1646231760430,58.17044927,101.53,101.41,50.48274198]
[1646231760631,5.0,101.49,101.41,50.48274198]
[1646231760830,56.09696333,101.49,101.41,149.23274198]
[1646231761230,56.09696333,101.49,101.42,2.54904003]
[1646231761431,56.09696333,101.49,101.42,19.80442528]
[1646231761632,56.09696333,101.49,101.4,124.44]
[1646231761832,13.8347312,101.48,101.39,2.54904003]
[1646231762033,13.8347312,101.48,101.35,510.81438565]
[1646231762034,51.06803016,101.47,101.35,510.81438565]
[1646231762231,62.60803016,101.47,101.35,10.0]
[1646231762435,5.0,101.44,101.34,15.1352]
[1646231762934,49.09583542,101.43,101.34,15.1352]
[1646231763332,54.09583542,101.43,101.34,15.1352]
[1646231763533,54.09583542,101.43,101.34,15.3852]
[1646231763732,6.0,101.42,101.34,15.3852]
[1646231763932,5.0,101.43,101.35,6.0]
[1646231764133,24.0218,101.46,101.36,14.7933]
[1646231764434,6.0,101.45,101.36,61.0589]
[1646231764634,24.0689,101.49,101.37,6.0]
[1646231764834,6.0,101.48,101.38,22.7138]
[1646231765036,11.0,101.48,101.38,22.9638]
[1646231765833,11.0,101.48,101.38,37.7539]
[1646231766060,46.84922332,101.47,101.39,6.0]
[1646231766233,6.0,101.48,101.39,6.25]
[1646231766434,5.0,101.5,101.39,6.25]
[1646231766635,6.0,101.49,101.39,6.25]
[1646231767134,38.06959116,101.5,101.38,37.1799]
[1646231767432,102.60864734,101.49,101.38,37.1799]
[1646231767834,48.69179806,101.47,101.38,37.1799]
[1646231768036,5.0,101.46,101.38,37.1799]
[1646231768234,57.7835602,101.45,101.38,37.1799]
[1646231768435,14.7944,101.47,101.38,37.1799]
[1646231768646,6.0,101.49,101.38,37.4299]
[1646231769035,6.0,101.49,101.39,2.54904003]
[1646231769237,5.0,101.49,101.39,2.79904003]
[1646231769434,49.78633553,101.48,101.39,17.58974003]
[1646231769838,49.78633553,101.48,101.4,2.54904003]
[1646231770140,49.78633553,101.48,101.4,2.79904003]
[1646231770337,49.78633553,101.48,101.38,39.72894003]
[1646231770538,14.7939,101.47,101.38,37.1799]
[1646231770736,45.70792227,101.46,101.38,37.1799]
[1646231771336,14.7939,101.47,101.38,37.1799]
[1646231771735,19.7939,101.47,101.38,37.4299]
[1646231771937,19.7939,101.47,101.38,52.2221]
[1646231772137,3.943,101.5,101.39,0.19992051]
[1646231772337,54.09338613,101.49,101.39,120.39592051]
[1646231772537,54.09338613,101.49,101.4,2.54904003]
[1646231772738,54.09338613,101.49,101.4,2.99896054]
[1646231773136,54.09338613,101.49,101.4,2.79904003]
[1646231773558,52.36552388,101.47,101.4,0.25]
[1646231773737,52.36552388,101.47,101.4,14.7863]
[1646231773938,52.36552388,101.47,101.4,15.0363]
[1646231774347,6.0,101.48,101.4,15.0363]
[1646231774546,14.7898,101.5,101.4,15.0363]
[1646231774743,6.0,101.49,101.4,65.05964003]
[1646231774942,6.0,101.49,101.41,6.0]
[1646231775141,6.0,101.49,101.41,6.25]
[1646231775444,57.20809635,101.48,101.41,0.25]
[1646231776342,57.20809635,101.48,101.4,47.7243]
[1646231776541,57.20809635,101.48,101.4,0.25]
[1646231776741,57.20809635,101.48,101.39,113.15]
[1646231777041,83.73768751,101.48,101.39,112.9]
[1646231777240,55.57724519,101.46,101.38,14.4661]
[1646231778047,14.7965,101.45,101.38,14.4661]
[1646231778243,59.94910542,101.44,101.38,14.4661]
[1646231779147,59.94910542,101.44,101.38,17.26514003]
[1646231780150,6.0,101.43,101.38,17.26514003]
[1646231780352,54.56121996,101.42,101.38,17.26514003]
[1646231781070,54.56121996,101.42,101.38,17.01514003]
[1646231781271,54.56121996,101.42,101.38,2.54904003]
[1646231781575,54.56121996,101.42,101.36,49.1524]
[1646231781771,54.56121996,101.42,101.36,49.4024]
[1646231782172,17.422,101.45,101.36,49.4024]
[1646231782173,8.944,101.45,101.36,49.4024]
[1646231782371,14.7975,101.44,101.36,51.95144003]
[1646231783176,46.29212002,101.43,101.36,51.95144003]
[1646231784375,3.944,101.45,101.36,51.95144003]
[1646231784574,8.944,101.45,101.38,14.97596106]
[1646231784773,5.0,101.45,101.38,15.0435]
[1646231784975,5.0,101.45,101.38,17.59254003]
[1646231785575,6.0,101.44,101.38,17.59254003]
[1646231785977,5.0,101.45,101.39,0.27479019]
[1646231786180,3.944,101.47,101.4,14.79]
[1646231786377,6.0,101.46,101.4,17.58904003]
[1646231786677,6.0,101.46,101.41,2.54904003]
[1646231786877,6.0,101.46,101.41,2.79904003]
[1646231787077,6.0,101.47,101.41,2.79904003]
[1646231788078,51.98579387,101.46,101.41,2.79904003]
[1646231789082,51.98579387,101.46,101.41,2.54904003]
[1646231789282,19.7904,101.49,101.41,2.54904003]
[1646231789686,6.0,101.48,101.41,2.79904003]
[1646231790185,3.943,101.49,101.41,2.79904003]
[1646231790382,6.0,101.48,101.41,8.70904003]
[1646231790583,52.74831702,101.48,101.41,8.70904003]
[1646231791183,52.74831702,101.48,101.41,20.24904003]
[1646231791785,6.0,101.48,101.41,20.24904003]
[1646231791985,14.7883,101.51,101.41,8.70904003]
[1646231792189,6.0,101.5,101.42,2.54904003]
[1646231792387,6.0,101.5,101.42,116.48916237]
[1646231792593,8.943,101.52,101.43,6.0]
[1646231792787,6.0,101.51,101.43,45.26644003]
[1646231792988,6.0,101.51,101.44,2.54904003]
[1646231793191,3.94,101.54,101.44,2.79904003]
[1646231793391,1.35843176,101.56,101.45,99.03639463]
[1646231793589,1.35843176,101.56,101.46,148.8664]
[1646231793788,3.94,101.57,101.46,157.66544003]
[1646231793989,3.94,101.57,101.47,0.28639463]
[1646231794290,5.0,101.58,101.49,0.28639463]
[1646231794489,6.0,101.57,101.49,17.54]
[1646231794689,6.0,101.57,101.5,2.54904003]
[1646231794889,6.0,101.57,101.5,2.79904003]
[1646231795089,6.0,101.58,101.5,2.79904003]
[1646231795290,65.9526243,101.58,101.5,2.79904003]
[1646231795489,59.9526243,101.58,101.5,2.79904003]
[1646231796690,6.0,101.57,101.5,2.79904003]
[1646231796890,53.42800319,101.56,101.5,2.79904003]
[1646231797091,53.42800319,101.56,101.5,0.25]
[1646231797294,53.42800319,101.56,101.49,83.6445]
[1646231798092,53.42800319,101.56,101.49,54.2099]
[1646231798792,53.42800319,101.56,101.48,2.54904003]
[1646231798994,68.20900319,101.56,101.46,49.47324003]
[1646231799193,68.20900319,101.56,101.46,49.72324003]
[1646231799393,53.42800319,101.56,101.46,49.72324003]
[1646231799692,53.42800319,101.56,101.46,49.47324003]
[1646231800093,5.0,101.55,101.46,49.47324003]
[1646231800294,46.46604653,101.54,101.46,49.47324003]
[1646231800993,46.46604653,101.54,101.46,47.1742]
[1646231801692,46.46604653,101.54,101.43,14.7665]
[1646231801894,2.3076494,101.53,101.42,2.54904003]